bitfinex-derivatives/quotes_BTCF0:USTF0_20251119
["timestamp","ask_amount","ask_price","bid_price","bid_amount"]
[1763575871796,0.02424803,89549.0,89548.0,0.04541]
[1763575872002,0.00219803,89549.0,89548.0,0.04441]
[1763575872801,0.04641803,89549.0,89545.0,0.00016756]
[1763575873003,0.00219803,89549.0,89548.0,0.04441]
[1763575873594,0.00219803,89549.0,89548.0,0.04541]
[1763575874002,0.04641803,89549.0,89548.0,0.001]
[1763575874201,0.04641803,89549.0,89545.0,0.00016756]
[1763575874202,0.04422,89546.0,89545.0,0.00016756]
[1763575874403,0.04641803,89546.0,89545.0,0.00016756]
[1763575874607,0.04641803,89546.0,89545.0,0.02319756]
[1763575874789,0.03939049,89559.0,89558.0,0.04441]
[1763575874990,0.15010852,89559.0,89558.0,0.04441]
[1763575875200,0.19432852,89559.0,89545.0,0.00016756]
[1763575875890,0.03939049,89556.0,89545.0,0.00016756]
[1763575876093,0.00219803,89546.0,89545.0,0.04457756]
[1763575876500,0.02424803,89546.0,89545.0,0.04457756]
[1763575876702,0.04641803,89546.0,89545.0,0.00016756]
[1763575877297,0.08580852,89546.0,89545.0,0.00016756]
[1763575877902,0.08680852,89546.0,89545.0,0.00016756]
[1763575878397,0.04841803,89546.0,89545.0,0.04457756]
[1763575878594,0.11271803,89546.0,89545.0,0.04457756]
[1763575878999,0.15693803,89546.0,89545.0,0.00016756]
[1763575879501,0.00419803,89546.0,89545.0,0.04457756]
[1763575880005,0.02747388,89546.0,89545.0,0.04457756]
[1763575880218,0.02847388,89546.0,89545.0,0.04457756]
[1763575881305,0.02747388,89546.0,89545.0,0.04457756]
[1763575881605,0.04852388,89546.0,89545.0,0.04457756]
[1763575881909,0.07069388,89546.0,89545.0,0.04457756]
[1763575882100,0.07069388,89546.0,89545.0,0.02319756]
[1763575882604,0.02647388,89546.0,89545.0,0.04457756]
[1763575883107,0.03939049,89561.0,89559.0,0.04441]
[1763575883293,0.00219803,89560.0,89559.0,0.02303]
[1763575883497,0.04422,89552.0,89551.0,0.02303]
[1763575883700,0.04641803,89552.0,89551.0,0.02303]
[1763575884109,0.04641803,89552.0,89545.0,0.00016756]
[1763575884307,0.04641803,89552.0,89546.0,0.1117673]
[1763575884493,0.02424803,89552.0,89551.0,0.04441]
[1763575885106,0.00219803,89552.0,89551.0,0.04441]
[1763575885408,0.02350803,89552.0,89551.0,0.04441]
[1763575885605,0.02350803,89552.0,89545.0,0.04028301]
[1763575885606,0.04458803,89552.0,89545.0,0.04028301]
[1763575885811,0.04239,89546.0,89545.0,0.13412616]
[1763575886012,0.04458803,89546.0,89545.0,0.02235756]
[1763575886509,0.04458803,89546.0,89545.0,0.04516756]
[1763575886709,0.00219803,89546.0,89545.0,0.04516756]
[1763575886908,0.00027913,89566.0,89545.0,0.00016756]
[1763575887109,0.08383803,89565.0,89559.0,0.1117504]
[1763575887411,0.04239,89560.0,89559.0,0.02219]
[1763575887704,0.04239,89560.0,89556.0,0.21106306]
[1763575887705,0.04239,89557.0,89556.0,0.21106306]
[1763575887906,0.04458803,89557.0,89556.0,0.02219]
[1763575888110,0.04458803,89557.0,89547.0,0.25117851]
[1763575888306,0.04458803,89557.0,89545.0,0.00016756]
[1763575888506,0.00219803,89557.0,89556.0,0.01304]
[1763575888707,0.00219803,89557.0,89556.0,0.05804]
[1763575888912,0.00027913,89566.0,89565.0,0.045]
[1763575889113,0.00247716,89566.0,89565.0,0.045]
[1763575889412,0.00247716,89566.0,89565.0,0.1567436]
[1763575890010,0.00027913,89566.0,89565.0,0.1567436]
[1763575890416,0.00227913,89566.0,89565.0,0.1567436]
[1763575890711,0.03939049,89588.0,89587.0,0.045]
[1763575890910,0.00219803,89588.0,89587.0,0.045]
[1763575891810,0.05965196,89606.0,89603.0,0.0233]
[1763575891811,0.03939049,89604.0,89603.0,0.0233]
[1763575892011,0.00219803,89604.0,89603.0,0.0462]
[1763575892409,0.000279,89606.0,89605.0,0.0462]
[1763575892715,0.00247703,89606.0,89605.0,0.0462]
[1763575893710,0.001279,89606.0,89605.0,0.0462]
[1763575893907,0.002279,89606.0,89605.0,0.0462]
[1763575894309,0.01864,89637.0,89629.0,0.0462]
[1763575894507,0.04492,89630.0,89620.0,0.26480558]
[1763575894705,0.01864,89637.0,89628.0,0.0462]
[1763575894706,0.00219803,89629.0,89628.0,0.0462]
[1763575895010,0.04711803,89629.0,89628.0,0.0462]
[1763575895216,0.04711803,89629.0,89628.0,0.0233]
[1763575895715,0.12161,89652.0,89628.0,0.1578648]
[1763575895914,0.04711803,89639.0,89638.0,0.0233]
[1763575896216,0.04711803,89639.0,89638.0,0.0462]
[1763575896217,0.02396803,89639.0,89638.0,0.0462]
[1763575896420,0.04711803,89639.0,89630.0,0.26480558]
[1763575896804,0.04711803,89639.0,89638.0,0.0233]
[1763575897120,0.00219803,89639.0,89638.0,0.0462]
[1763575897518,0.00319803,89639.0,89638.0,0.0462]
[1763575897915,0.04811803,89639.0,89624.0,0.00016735]
[1763575898828,0.04711803,89639.0,89624.0,0.00016735]
[1763575899117,0.04492,89625.0,89624.0,0.00016735]
[1763575899322,0.04711803,89625.0,89624.0,0.00016735]
[1763575903421,0.00219803,89625.0,89624.0,0.04636735]
[1763575903918,0.04711803,89625.0,89624.0,0.04636735]
[1763575904422,0.00219803,89625.0,89624.0,0.04636735]
[1763575905822,0.01313,89652.0,89624.0,0.00016735]
[1763575906023,0.00219803,89651.0,89640.0,0.26480558]
[1763575906229,0.10844,89650.0,89640.0,0.26480558]
[1763575906421,0.00219803,89649.0,89635.0,0.013]
[1763575906620,0.00219803,89649.0,89648.0,0.0462]
[1763575907132,0.02396803,89649.0,89648.0,0.0462]
[1763575907722,0.00219803,89649.0,89648.0,0.0462]
[1763575907926,0.01313,89648.0,89624.0,0.00016735]
[1763575908229,0.00219803,89647.0,89630.0,0.26480558]
[1763575908623,0.02177,89625.0,89624.0,0.00016735]
[1763575908835,0.04711803,89625.0,89624.0,0.00016735]
[1763575909128,0.04711803,89625.0,89624.0,0.04636735]
[1763575909129,0.00219803,89625.0,89624.0,0.04636735]
[1763575910634,0.04711803,89625.0,89624.0,0.02346735]
[1763575910933,0.04711803,89625.0,89624.0,0.00016735]
[1763575912831,0.04711803,89625.0,89590.0,0.2649138]
[1763575913035,0.04711803,89625.0,89600.0,0.26480558]
[1763575913829,0.00016665,89621.0,89604.0,0.00016735]
[1763575914130,0.00219803,89620.0,89604.0,0.00016735]
[1763575915325,0.02177,89605.0,89604.0,0.00016735]
[1763575915521,0.02396803,89605.0,89604.0,0.02346735]
[1763575915725,0.02396803,89605.0,89604.0,0.04736735]
[1763575916232,0.00219803,89605.0,89604.0,0.04736735]
[1763575916532,0.00016665,89621.0,89620.0,0.0462]
[1763575916826,0.04728468,89621.0,89620.0,0.0462]
[1763575917021,0.04728468,89621.0,89620.0,0.0233]
[1763575917223,0.04728468,89621.0,89604.0,0.01516735]
[1763575917520,0.03995317,89617.0,89604.0,0.01516735]
[1763575917731,0.00219803,89605.0,89604.0,0.06136735]
[1763575917929,0.00219803,89605.0,89604.0,0.06036735]
[1763575918520,0.03995317,89619.0,89618.0,0.0462]
[1763575918724,0.00219803,89619.0,89618.0,0.0462]
[1763575918933,0.04711803,89619.0,89618.0,0.0462]
[1763575919825,0.00219803,89619.0,89618.0,0.0462]
[1763575920030,0.04711803,89619.0,89618.0,0.0462]
[1763575920821,0.04492,89610.0,89609.0,0.0462]
[1763575921025,0.04492,89605.0,89604.0,0.04736735]
[1763575921223,0.00219803,89605.0,89604.0,0.05936735]
[1763575921429,0.04005135,89611.0,89609.0,0.0462]
[1763575921629,0.04005135,89615.0,89613.0,0.1578837]
[1763575921824,0.04005135,89615.0,89614.0,0.04503]
[1763575922027,0.04272,89606.0,89605.0,0.02204]
[1763575922227,0.04391803,89606.0,89605.0,0.02204]
[1763575922422,0.00219803,89606.0,89605.0,0.04377]
[1763575923030,0.05937296,89614.0,89605.0,0.04377]
[1763575923031,0.04008108,89610.0,89605.0,0.04377]
[1763575923232,0.04008108,89611.0,89609.0,0.1554587]
[1763575923538,0.00219803,89611.0,89610.0,0.04377]
[1763575924232,0.02354803,89611.0,89610.0,0.04377]
[1763575924431,0.04491803,89611.0,89604.0,0.00016735]
[1763575924637,0.02135,89605.0,89604.0,0.04393735]
[1763575924826,0.00219803,89605.0,89604.0,0.05698735]
[1763575925023,0.05937296,89617.0,89612.0,0.04377]
[1763575925024,0.04008108,89613.0,89612.0,0.04377]
[1763575925231,0.04491803,89613.0,89612.0,0.02204]
[1763575925540,0.04491803,89613.0,89604.0,0.01321735]
[1763575926037,0.04491803,89613.0,89604.0,0.00016735]
[1763575926537,0.04272,89604.0,89603.0,0.04377]
[1763575926728,0.04272,89591.0,89580.0,0.01305]
[1763575927040,0.04491803,89591.0,89580.0,0.01305]
[1763575927226,0.04491803,89591.0,89575.0,0.0401071]
[1763575927435,0.04499982,89591.0,89572.0,0.0401071]
[1763575927630,0.04272,89583.0,89582.0,0.00016735]
[1763575927832,0.04491803,89583.0,89582.0,0.00016735]
[1763575928540,0.15331803,89583.0,89560.0,0.26480558]
[1763575928741,0.15331803,89583.0,89557.0,0.1117534]
[1763575929044,0.15331803,89583.0,89556.0,0.01305]
[1763575929045,0.20604133,89583.0,89556.0,0.01305]
[1763575929228,0.16694803,89583.0,89556.0,0.01305]
[1763575929432,0.04272,89562.0,89561.0,0.00016745]
[1763575929631,0.04503094,89562.0,89561.0,0.00016745]
[1763575930947,0.04503094,89562.0,89561.0,0.001]
[1763575931744,0.04272,89554.0,89553.0,0.00016745]
[1763575931948,0.02135,89532.0,89531.0,0.02215279]
[1763575932143,0.04504645,89532.0,89531.0,0.00011279]
[1763575932443,0.00232645,89532.0,89531.0,0.05693279]
[1763575932749,0.00219804,89532.0,89531.0,0.05693279]
[1763575932947,1e-08,89532.0,89531.0,0.01316279]
[1763575933141,0.00219804,89532.0,89531.0,0.05693279]
[1763575933348,0.00219804,89532.0,89531.0,0.04488279]
[1763575933849,0.00119804,89532.0,89531.0,0.05893542]
[1763575934842,0.00119804,89532.0,89531.0,0.05993542]
[1763575935443,0.00016745,89540.0,89539.0,0.155546]
[1763575935639,0.01263,89570.0,89544.0,0.01305]
[1763575935840,0.11036807,89569.0,89559.0,0.1117506]
[1763575936046,0.04272,89561.0,89560.0,0.00100263]
[1763575936248,0.04464807,89561.0,89560.0,0.00100263]
[1763575936446,0.04464807,89561.0,89560.0,0.13479243]
[1763575936756,0.0400933,89598.0,89579.0,0.1554949]
[1763575936945,0.09971961,89618.0,89579.0,0.1554949]
[1763575936946,0.00192807,89582.0,89581.0,0.04377]
[1763575937142,0.02327807,89582.0,89581.0,0.04477263]
[1763575937346,0.04272,89580.0,89579.0,0.00016745]
[1763575937539,0.04464807,89580.0,89579.0,0.00016745]
[1763575939646,0.14448807,89580.0,89579.0,0.00117008]
[1763575939841,0.04564807,89580.0,89579.0,0.00117008]
[1763575940041,0.15308807,89580.0,89579.0,0.02321008]
[1763575940245,0.15408807,89580.0,89579.0,0.00016745]
[1763575940650,0.04295,89588.0,89587.0,0.04377]
[1763575940851,0.04295,89588.0,89587.0,0.04477263]
[1763575941046,0.00016745,89596.0,89595.0,0.04377]
[1763575941246,0.05744552,89596.0,89595.0,0.00100263]
[1763575941653,0.05744552,89596.0,89580.0,0.26480558]
[1763575941855,0.05744552,89596.0,89581.0,0.00100263]
[1763575942154,0.05744552,89596.0,89582.0,0.1117222]
[1763575942345,0.05744552,89596.0,89595.0,0.00100263]
[1763575943050,0.04272,89588.0,89587.0,0.001]
[1763575943248,0.04464807,89588.0,89587.0,0.001]
[1763575943448,0.04272,89580.0,89579.0,0.00016745]
[1763575943650,0.02327807,89580.0,89579.0,0.04494008]
[1763575943861,0.04464807,89580.0,89579.0,0.00117008]
[1763575944948,0.04464807,89580.0,89579.0,0.04494008]
[1763575944949,0.00192807,89580.0,89579.0,0.04494008]
[1763575945149,0.04464807,89580.0,89579.0,0.00117008]
[1763575948345,0.00192807,89580.0,89579.0,0.04611008]
[1763575950057,0.0342,89593.0,89579.0,0.00117008]
[1763575950242,0.00192807,89592.0,89580.0,0.21056867]
[1763575950449,0.04629807,89592.0,89591.0,0.00100263]
[1763575952154,0.00192807,89592.0,89591.0,0.04510263]
[1763575953557,0.05904807,89592.0,89591.0,0.00100263]
[1763575953757,0.00192807,89592.0,89591.0,0.04510263]
[1763575954152,0.04609807,89592.0,89591.0,0.02254263]
[1763575954561,0.00192807,89592.0,89591.0,0.04510263]
[1763575955161,0.04212745,89596.0,89595.0,0.1558061]
[1763575955454,0.04212745,89596.0,89595.0,0.15680873]
[1763575955658,0.00016745,89596.0,89595.0,0.15680873]
[1763575956456,0.00116745,89596.0,89595.0,0.04510263]
[1763575958263,0.06929,89604.0,89603.0,0.1557961]
[1763575958456,0.0530433,89640.0,89622.0,0.1116713]
[1763575958649,0.02159,89624.0,89623.0,0.00100263]
[1763575958855,0.02351807,89624.0,89623.0,0.02254263]
[1763575959061,0.04609807,89624.0,89623.0,0.00100263]
[1763575960858,0.05712,89616.0,89615.0,0.00016735]
[1763575961172,0.05904807,89616.0,89615.0,0.00116998]
[1763575961465,0.04609807,89616.0,89615.0,0.04526998]
[1763575961763,0.00192807,89616.0,89615.0,0.04526998]
[1763575961961,0.05904807,89616.0,89615.0,0.00116998]
[1763575962161,0.05904807,89616.0,89615.0,0.02270998]
[1763575962753,0.05904807,89616.0,89615.0,0.00116998]
[1763575965271,0.05904807,89616.0,89615.0,0.00016735]
[1763575965458,0.04417,89591.0,89590.0,0.06139992]
[1763575965663,0.04417,89576.0,89570.0,0.21056867]
[1763575965972,0.00192807,89575.0,89574.0,0.1558315]
[1763575966167,0.00192807,89575.0,89574.0,0.04510263]
[1763575966376,0.04609807,89575.0,89574.0,0.00100263]
[1763575966568,0.04509807,89575.0,89574.0,0.00100263]
[1763575966871,0.02159,89567.0,89566.0,0.00016745]
[1763575967066,0.04509807,89567.0,89566.0,0.04627008]
[1763575967258,0.04509807,89567.0,89566.0,0.02371008]
[1763575967462,0.04409807,89567.0,89566.0,0.02371008]
[1763575967863,0.00092807,89567.0,89566.0,0.04627008]
[1763575968467,0.01295,89580.0,89570.0,0.2116406]
[1763575968663,0.05712,89580.0,89579.0,0.00219803]
[1763575969863,0.04417,89571.0,89566.0,0.00016745]
[1763575970058,0.02159,89568.0,89567.0,0.00219803]
[1763575970268,0.02159,89568.0,89567.0,0.02373803]
[1763575970671,0.02159,89568.0,89567.0,0.04629803]
[1763575971072,0.01295,89580.0,89567.0,0.00219803]
[1763575971272,0.01295,89580.0,89570.0,0.21056867]
[1763575971474,0.05712,89580.0,89579.0,0.00219803]
[1763575973776,0.05812,89580.0,89579.0,0.02373803]
[1763575973976,0.05812,89580.0,89579.0,0.00219803]
[1763575974577,0.05912,89580.0,89579.0,0.00219803]
[1763575975672,0.05812,89580.0,89579.0,0.00219803]
[1763575975872,0.05912,89580.0,89579.0,0.00219803]
[1763575978178,0.05812,89580.0,89579.0,0.00219803]
[1763575978380,0.05912,89580.0,89579.0,0.00219803]
[1763575978987,0.04417,89571.0,89570.0,0.21056867]
[1763575979181,0.04417,89571.0,89570.0,0.11393533]
[1763575979381,0.04417,89571.0,89570.0,0.00219803]
[1763575979586,0.04417,89571.0,89570.0,0.04629803]
[1763575979788,0.04417,89571.0,89570.0,0.02373803]
[1763575980380,0.04417,89571.0,89570.0,0.04629803]
[1763575981082,0.02159,89580.0,89579.0,0.0441]
[1763575981287,0.00016745,89583.0,89582.0,0.0441]
[1763575981499,0.02175745,89583.0,89582.0,0.04629803]
[1763575981698,0.04433745,89583.0,89582.0,0.00219803]
[1763575981890,0.04433745,89583.0,89582.0,0.02396803]
[1763575982392,0.04433745,89583.0,89582.0,0.00219803]
[1763575982690,0.00116745,89583.0,89582.0,0.04574803]
[1763575983694,0.01295,89600.0,89599.0,0.04355]
[1763575983695,0.02307,89600.0,89599.0,0.04355]
[1763575984002,0.02307,89600.0,89599.0,0.04574803]
[1763575984304,0.04594,89600.0,89599.0,0.00219803]
[1763575985306,0.04694,89600.0,89599.0,0.00219803]
[1763575985502,0.04694,89600.0,89599.0,0.04574803]
[1763575986102,0.04694,89600.0,89599.0,0.02396803]
[1763575987294,0.04694,89600.0,89599.0,0.00219803]
[1763575988100,0.001,89600.0,89599.0,0.04574803]
[1763575988399,0.0400933,89623.0,89599.0,0.04574803]
[1763575988400,0.02307,89620.0,89619.0,0.04355]
[1763575988603,0.02307,89620.0,89619.0,0.04574803]
[1763575988792,0.02307,89620.0,89619.0,0.15742423]
[1763575989600,0.001,89620.0,89619.0,0.15742423]
[1763575989798,0.0400933,89648.0,89619.0,0.15742423]
[1763575989799,0.05937296,89656.0,89643.0,0.1116457]
[1763575990109,0.05976,89650.0,89649.0,0.00219803]
[1763575990293,0.05976,89650.0,89649.0,0.02396803]
[1763575990500,0.05976,89650.0,89649.0,0.00219803]
[1763575990805,0.04594,89650.0,89649.0,0.04574803]
[1763575990997,0.04594,89650.0,89649.0,0.00219803]
[1763575991603,0.04594,89650.0,89649.0,0.04574803]
[1763575991604,0.02307,89650.0,89649.0,0.04574803]
[1763575992496,0.00016636,89658.0,89657.0,0.1551789]
[1763575992692,0.00016636,89658.0,89657.0,0.15737693]
[1763575994100,0.04594,89668.0,89667.0,0.111616]
[1763575994307,0.02307,89668.0,89667.0,0.04574803]
[1763575994501,0.01382,89683.0,89671.0,0.04355]
[1763575994701,0.05976,89672.0,89671.0,0.04574803]
[1763575995102,0.05976,89672.0,89671.0,0.00219803]
[1763575995799,0.06076,89672.0,89671.0,0.00219803]
[1763575996502,0.23552161,89700.0,89681.0,0.1551486]
[1763575996503,0.02307,89682.0,89681.0,0.1551486]
[1763575996703,0.01382,89688.0,89685.0,0.04355]
[1763575996907,0.04621875,89686.0,89685.0,0.04574803]
[1763575997407,0.02334875,89686.0,89685.0,0.04574803]
[1763575997603,0.00027875,89686.0,89685.0,0.04574803]
[1763575998312,0.04594,89707.0,89688.0,0.008]
[1763575998504,0.02307,89691.0,89690.0,0.21056867]
[1763575998703,0.02307,89690.0,89689.0,0.00016725]
[1763575998909,0.02307,89690.0,89689.0,0.04591528]
[1763575999108,0.01382,89700.0,89689.0,0.00236528]
[1763575999311,0.01382,89700.0,89690.0,0.21056867]
[1763575999611,0.04594,89692.0,89691.0,0.00219803]
[1763575999806,0.02307,89700.0,89699.0,0.04355]
[1763576000011,0.10696,89722.0,89699.0,0.00219803]
[1763576000201,0.10696,89722.0,89704.0,0.1115699]
[1763576000407,0.05976,89712.0,89711.0,0.00219803]
[1763576000807,0.05976,89712.0,89711.0,0.11375973]
[1763576001019,0.05976,89712.0,89711.0,0.00219803]
[1763576001204,0.04594,89691.0,89690.0,0.21056867]
[1763576001404,0.02307,89691.0,89690.0,0.04574803]
[1763576001599,0.02307,89695.0,89694.0,0.1115816]
[1763576001806,0.01382,89700.0,89694.0,0.15732963]
[1763576002001,0.01382,89712.0,89699.0,0.04355]
[1763576002206,0.04594,89701.0,89700.0,0.00219803]
[1763576004117,0.04594,89701.0,89700.0,0.04574803]
[1763576004417,0.01382,89712.0,89704.0,0.1115692]
[1763576004713,0.05976,89712.0,89711.0,0.04574803]
[1763576004919,0.02307,89717.0,89716.0,0.1115543]
[1763576005108,0.02307,89717.0,89716.0,0.11375233]
[1763576005109,0.04594,89717.0,89716.0,0.11375233]
[1763576005912,0.04594,89717.0,89716.0,0.00219803]
[1763576007422,0.04694,89717.0,89716.0,0.00219803]
[1763576010124,0.01382,89724.0,89723.0,0.02292]
[1763576010323,0.05773,89724.0,89723.0,0.00219803]
[1763576011116,0.10824,89753.0,89723.0,0.00219803]
[1763576011418,0.10824,89753.0,89740.0,0.26392208]
[1763576011615,0.04391,89742.0,89741.0,0.00219803]
[1763576013226,0.05898,89752.0,89747.0,0.1115167]
[1763576013428,0.04516,89743.0,89730.0,0.26392208]
[1763576013619,0.0221,89732.0,89731.0,0.00219803]
[1763576013825,0.04516,89732.0,89731.0,0.00219803]
[1763576016632,0.04516,89732.0,89729.0,0.00016716]
[1763576016822,0.04516,89730.0,89701.0,0.01156761]
[1763576017019,0.0221,89717.0,89716.0,0.1568543]
[1763576017322,0.04516,89718.0,89717.0,0.00219803]
[1763576017720,0.04516,89718.0,89717.0,0.15905223]
[1763576018125,0.0221,89718.0,89717.0,0.15905223]
[1763576018327,0.0221,89718.0,89717.0,0.00219803]
[1763576018328,0.04516,89718.0,89717.0,0.00219803]
[1763576019335,0.04516,89718.0,89717.0,0.13637223]
[1763576019535,0.04516,89718.0,89717.0,0.00219803]
[1763576019830,0.04516,89710.0,89709.0,0.00016716]
[1763576020334,0.01381,89712.0,89683.0,0.1342165]
[1763576020335,0.04516,89684.0,89683.0,0.1342165]
[1763576020530,0.04516,89684.0,89683.0,0.13641453]
[1763576020734,0.04516,89684.0,89683.0,0.00219803]
[1763576023042,0.04516,89684.0,89675.0,0.00016725]
[1763576023043,0.04516,89676.0,89675.0,0.00016725]
[1763576023230,0.04516,89676.0,89675.0,0.00236528]
[1763576024839,0.0539033,89688.0,89675.0,0.00236528]
[1763576024840,0.04516,89685.0,89684.0,0.1342142]
[1763576025034,0.00016725,89692.0,89689.0,0.0453]
[1763576025238,0.00016725,89692.0,89678.0,0.26392208]
[1763576025239,0.04532725,89692.0,89691.0,0.00219803]
[1763576026242,0.04532725,89692.0,89675.0,0.00016725]
[1763576026243,0.04516,89676.0,89675.0,0.11177375]
[1763576026541,0.04516,89676.0,89675.0,0.11397178]
[1763576027043,0.04516,89676.0,89675.0,0.00236528]
[1763576027343,0.04516,89676.0,89675.0,0.04766528]
[1763576027542,0.04516,89676.0,89675.0,0.02498528]
[1763576027843,0.01381,89687.0,89675.0,0.00236528]
[1763576028340,0.0221,89680.0,89679.0,0.1116003]
[1763576028542,0.04516,89680.0,89679.0,0.00219803]
[1763576028845,0.04516,89680.0,89679.0,0.02481803]
[1763576029035,0.04516,89680.0,89679.0,0.00219803]
[1763576030442,0.04516,89680.0,89679.0,0.02481803]
[1763576030640,0.04516,89680.0,89679.0,0.04749803]
[1763576030833,0.05897,89687.0,89686.0,0.1115928]
[1763576031033,0.05897,89687.0,89686.0,0.15909083]
[1763576031742,0.02226725,89692.0,89691.0,0.1568866]
[1763576031947,0.04532725,89692.0,89691.0,0.11378463]
[1763576033745,0.04532725,89692.0,89691.0,0.00219803]
[1763576038046,0.04532725,89692.0,89675.0,0.00016725]
[1763576038047,0.04516,89676.0,89675.0,0.00016725]
[1763576038236,0.04516,89676.0,89675.0,0.00236528]
[1763576038442,0.04516,89676.0,89675.0,0.02498528]
[1763576038651,0.04516,89676.0,89675.0,0.04766528]
[1763576039642,0.02306,89690.0,89689.0,0.1115886]
[1763576039841,0.04516,89690.0,89689.0,0.11378663]
[1763576040252,0.04516,89690.0,89689.0,0.00219803]
[1763576040449,0.04516,89690.0,89689.0,0.11378713]
[1763576040651,0.00016725,89692.0,89691.0,0.0453]
[1763576040849,0.00016725,89692.0,89691.0,0.04749803]
[1763576042340,0.02213725,89692.0,89691.0,0.04749803]
[1763576042543,0.00016725,89692.0,89691.0,0.04749803]
[1763576045145,0.04374725,89692.0,89691.0,0.00219803]
[1763576045348,0.04358,89681.0,89680.0,0.03988148]
[1763576045650,0.04358,89676.0,89675.0,0.04619725]
[1763576045852,0.01341,89683.0,89675.0,0.00236528]
[1763576045853,0.05699,89683.0,89675.0,0.00236528]
[1763576046242,0.04358,89676.0,89675.0,0.02536528]
[1763576046449,0.01341,89683.0,89675.0,0.00236528]
[1763576046654,0.02197,89676.0,89675.0,0.13697178]
[1763576046848,0.02197,89676.0,89675.0,0.16000178]
[1763576047051,0.04358,89676.0,89675.0,0.00236528]
[1763576047254,0.04358,89676.0,89675.0,0.00016725]
[1763576047849,0.04358,89665.0,89664.0,0.00014167]
[1763576048153,0.04358,89666.0,89665.0,0.023]
[1763576048451,0.04358,89666.0,89665.0,0.00219803]
[1763576049552,0.00016725,89674.0,89673.0,0.157639]
[1763576049853,0.00016725,89674.0,89673.0,0.15983703]
[1763576050658,0.00016725,89674.0,89673.0,0.22003912]
[1763576050969,0.05739,89705.0,89704.0,0.1115704]
[1763576051258,0.05739,89705.0,89704.0,0.11376843]
[1763576052151,0.05739,89712.0,89711.0,0.1115617]
[1763576052357,0.05739,89712.0,89711.0,0.11375973]
[1763576053053,0.05739,89712.0,89711.0,0.00219803]
[1763576053649,0.02197,89712.0,89711.0,0.04822803]
[1763576053859,0.00016725,89720.0,89711.0,0.04822803]
[1763576054054,0.00016725,89720.0,89719.0,0.1575817]
[1763576054260,0.00027863,89726.0,89725.0,0.1575743]
[1763576054557,0.05726863,89726.0,89725.0,0.00219803]
[1763576056060,0.02224863,89726.0,89725.0,0.04822803]
[1763576056660,0.05726863,89726.0,89725.0,0.00219803]
[1763576057154,0.00027863,89726.0,89725.0,0.04822803]
[1763576058461,0.05726863,89726.0,89725.0,0.00219803]
[1763576058853,0.00027863,89726.0,89725.0,0.04822803]
[1763576059059,0.04385863,89726.0,89725.0,0.00219803]
[1763576059255,0.00016676,89734.0,89733.0,0.04603]
[1763576059459,0.00016676,89734.0,89733.0,0.04822803]
[1763576059657,0.04374676,89734.0,89733.0,0.00219803]
[1763576061261,0.04374676,89734.0,89733.0,0.15976233]
[1763576061567,0.04374676,89734.0,89733.0,0.11373233]
[1763576062157,0.04374676,89734.0,89733.0,0.13673233]
[1763576062364,0.00016676,89734.0,89733.0,0.15976233]
[1763576062856,0.05699,89752.0,89751.0,0.111512]
[1763576063057,0.05699,89752.0,89751.0,0.11371003]
[1763576063363,0.05699,89752.0,89751.0,0.00219803]
[1763576064159,0.05699,89752.0,89751.0,0.02519803]
[1763576064356,0.05699,89752.0,89751.0,0.00219803]
[1763576064859,0.0436985,89766.0,89765.0,0.1543546]
[1763576065056,0.0002785,89766.0,89765.0,0.04505803]
[1763576066061,0.0436985,89766.0,89765.0,0.00219803]
[1763576066854,0.04342,89758.0,89757.0,0.00016714]
[1763576067255,0.04342,89735.0,89734.0,0.0894467]
[1763576067469,0.04342,89735.0,89734.0,0.09164473]
[1763576067865,0.04342,89735.0,89734.0,0.02392803]
[1763576068369,0.02175,89735.0,89734.0,0.04505803]
[1763576068570,0.04342,89735.0,89734.0,0.00219803]
[1763576070362,0.04342,89735.0,89734.0,0.11373113]
[1763576070562,0.05646,89739.0,89738.0,0.1115281]
[1763576070769,0.05646,89739.0,89738.0,0.00219803]
[1763576071862,0.05646,89739.0,89729.0,9.941e-05]
[1763576071863,0.04426,89730.0,89729.0,9.941e-05]
[1763576072169,0.04426,89730.0,89729.0,0.00229744]
[1763576072366,0.02208,89730.0,89729.0,0.15804674]
[1763576072566,0.04426,89736.0,89735.0,0.1115309]
[1763576072762,0.04426,89736.0,89735.0,0.11372893]
[1763576073564,0.04426,89736.0,89735.0,0.00219803]
[1763576074875,0.04426,89736.0,89735.0,0.02521803]
[1763576075063,0.04426,89736.0,89735.0,0.13674983]
[1763576075257,0.02208,89739.0,89738.0,0.1557381]
[1763576075464,0.02208,89739.0,89738.0,0.15793613]
[1763576075673,0.04442677,89743.0,89742.0,0.1115231]
[1763576075860,0.04442677,89743.0,89742.0,0.00219803]
[1763576076372,0.04426,89733.0,89732.0,0.1115353]
[1763576076563,0.04645803,89733.0,89732.0,0.11226797]
[1763576076969,0.04645803,89733.0,89732.0,0.15647797]
[1763576076970,0.00219803,89733.0,89732.0,0.15647797]
[1763576077471,0.04645803,89733.0,89732.0,0.00073267]
[1763576078068,0.00016677,89743.0,89735.0,0.04421]
[1763576078262,0.00219803,89742.0,89733.0,0.20983654]
[1763576078459,0.02208,89740.0,89739.0,0.1115261]
[1763576078675,0.02208,89740.0,89739.0,0.11225877]
[1763576078676,0.02427803,89740.0,89739.0,0.11225877]
[1763576078873,0.00219803,89740.0,89739.0,0.15646877]
[1763576079173,0.04645803,89740.0,89739.0,0.04494267]
[1763576079365,0.04645803,89740.0,89739.0,0.02375267]
[1763576081370,0.04645803,89740.0,89739.0,0.00073267]
[1763576081572,0.00016677,89743.0,89742.0,0.1557331]
[1763576081876,0.0466248,89743.0,89742.0,0.11225577]
[1763576082076,0.0466248,89743.0,89742.0,0.15646577]
[1763576082671,0.0466248,89743.0,89742.0,0.00073267]
[1763576083074,0.0466248,89743.0,89742.0,0.02375267]
[1763576083879,0.0023648,89743.0,89742.0,0.04494267]
[1763576084182,0.0244448,89743.0,89742.0,0.04494267]
[1763576084375,0.0466248,89743.0,89742.0,0.04494267]
[1763576086182,0.0466248,89743.0,89742.0,0.08483622]
[1763576087184,0.0466248,89743.0,89742.0,0.04062622]
[1763576087373,0.0466248,89743.0,89742.0,0.00073267]
[1763576089680,0.04426,89737.0,89736.0,0.00562622]
[1763576089876,0.04645803,89737.0,89736.0,0.00562622]
[1763576090077,0.04426,89731.0,89730.0,0.32137444]
[1763576090276,0.04645803,89731.0,89730.0,0.36558444]
[1763576090885,0.04645803,89731.0,89729.0,9.941e-05]
[1763576090886,0.04426,89730.0,89729.0,9.941e-05]
[1763576091082,0.04426,89730.0,89726.0,0.06010198]
[1763576091083,0.05803,89727.0,89726.0,0.00016714]